[Event "Live Chess"]
[Site "Chess.com"]
[Date "2024.06.01"]
[Round "-"]
[White "PatientChessPapa"]
[Black "Larchikov"]
[Result "0-1"]
[WhiteElo "784"]
[BlackElo "2068"]
[TimeControl "300"]
[EndTime "11:08:15 PDT"]
[Termination "Larchikov won on time"]

1. e4 {[%clk 0:04:54.3]} 1... c6 {[%clk 0:04:54.9]} 2. d4 {[%clk 0:04:52.6]}
2... d5 {[%clk 0:04:54.8]} 3. exd5 {[%clk 0:04:51.2]} 3... cxd5 {[%clk
0:04:54.7]} 4. c4 {[%clk 0:04:50.1]} 4... e6 {[%clk 0:04:53.2]} 5. c5 {[%clk
0:04:45.7]} 5... b6 {[%clk 0:04:51.3]} 6. b4 {[%clk 0:04:34.7]} 6... a5 {[%clk
0:04:49.6]} 7. Nc3 {[%clk 0:04:32.8]} 7... axb4 {[%clk 0:04:48.3]} 8. Bb5+
{[%clk 0:04:15.7]} 8... Bd7 {[%clk 0:04:46.8]} 9. Bxd7+ {[%clk 0:04:14.4]} 9...
Nxd7 {[%clk 0:04:44.9]} 10. Nb5 {[%clk 0:03:54.1]} 10... bxc5 {[%clk 0:04:43.3]}
11. Nf3 {[%clk 0:03:35.4]} 11... Qb6 {[%clk 0:04:40.2]} 12. Qe2 {[%clk
0:03:12.5]} 12... c4 {[%clk 0:04:38.3]} 13. a4 {[%clk 0:03:03.4]} 13... bxa3
{[%clk 0:04:32.2]} 14. Nxa3 {[%clk 0:02:49.3]} 14... Bxa3 {[%clk 0:04:28.2]} 15.
Bxa3 {[%clk 0:02:45.1]} 15... Rxa3 {[%clk 0:04:25.3]} 16. Rxa3 {[%clk
0:02:42.2]} 16... Qb4+ {[%clk 0:04:21.3]} 17. Qd2 {[%clk 0:02:00.2]} 17... Qxa3
{[%clk 0:04:20.2]} 18. O-O {[%clk 0:01:59.2]} 18... Ngf6 {[%clk 0:04:18.7]} 19.
Ne5 {[%clk 0:01:44.2]} 19... O-O {[%clk 0:04:15]} 20. h4 {[%clk 0:00:53.1]}
20... Nxe5 {[%clk 0:04:11.7]} 21. dxe5 {[%clk 0:00:51.7]} 21... Ne4 {[%clk
0:04:08.9]} 22. Qc2 {[%clk 0:00:39.6]} 22... Qb3 {[%clk 0:04:06.4]} 23. Qb1
{[%clk 0:00:34.5]} 23... Qxb1 {[%clk 0:04:04.5]} 24. Rxb1 {[%clk 0:00:33.5]}
24... c3 {[%clk 0:04:04.4]} 25. f3 {[%clk 0:00:24]} 25... Nc5 {[%clk 0:04:02.7]}
26. Rb5 {[%clk 0:00:14.1]} 26... Rc8 {[%clk 0:03:59.3]} 27. Kf1 {[%clk
0:00:06.4]} 27... c2 {[%clk 0:03:58.3]} 0-1

[Event "Live Chess"]
[Site "Chess.com"]
[Date "2024.06.01"]
[Round "-"]
[White "booktrunk"]
[Black "elephantgerrald"]
[Result "1/2-1/2"]
[WhiteElo "1378"]
[BlackElo "757"]
[TimeControl "300"]
[EndTime "11:08:17 PDT"]
[Termination "Game drawn by repetition"]

1. e4 {[%clk 0:04:53.5]} 1... e5 {[%clk 0:04:58.2]} 2. Nc3 {[%clk 0:04:53.1]}
2... Nf6 {[%clk 0:04:55]} 3. Nf3 {[%clk 0:04:46.8]} 3... Nc6 {[%clk 0:04:53.3]}
4. a3 {[%clk 0:04:43.6]} 4... Bc5 {[%clk 0:04:50.7]} 5. d3 {[%clk 0:04:36.9]}
5... O-O {[%clk 0:04:47.5]} 6. Nd5 {[%clk 0:04:34.7]} 6... Nxd5 {[%clk 0:04:42]}
7. exd5 {[%clk 0:04:32.7]} 7... Ne7 {[%clk 0:04:40]} 8. c4 {[%clk 0:04:30.4]}
8... d6 {[%clk 0:04:38]} 9. Be2 {[%clk 0:04:28.2]} 9... c6 {[%clk 0:04:33.1]}
10. dxc6 {[%clk 0:04:25.4]} 10... Nxc6 {[%clk 0:04:30.8]} 11. O-O {[%clk
0:04:25.3]} 11... Bg4 {[%clk 0:04:25.8]} 12. b4 {[%clk 0:04:16.1]} 12... Bb6
{[%clk 0:04:16.6]} 13. h3 {[%clk 0:04:14.1]} 13... Bxf3 {[%clk 0:04:12.9]} 14.
Bxf3 {[%clk 0:04:12.4]} 14... Rc8 {[%clk 0:04:08.3]} 15. Qd2 {[%clk 0:04:02.9]}
15... Bd4 {[%clk 0:04:01]} 16. Rb1 {[%clk 0:03:59.2]} 16... g6 {[%clk
0:03:53.6]} 17. Bb2 {[%clk 0:03:53.9]} 17... Bxb2 {[%clk 0:03:51.3]} 18. Rxb2
{[%clk 0:03:52.3]} 18... b6 {[%clk 0:03:46.2]} 19. Re1 {[%clk 0:03:37.6]} 19...
Re8 {[%clk 0:03:26.6]} 20. Bd5 {[%clk 0:03:27.7]} 20... Kg7 {[%clk 0:03:16.1]}
21. Qe3 {[%clk 0:03:21.4]} 21... Ne7 {[%clk 0:03:04.9]} 22. Bb7 {[%clk
0:03:15.8]} 22... Rb8 {[%clk 0:03:01.9]} 23. Bf3 {[%clk 0:03:13.4]} 23... Nf5
{[%clk 0:02:58.7]} 24. Qd2 {[%clk 0:03:07.6]} 24... Nd4 {[%clk 0:02:53.5]} 25.
Bd1 {[%clk 0:02:58.4]} 25... d5 {[%clk 0:02:48.8]} 26. c5 {[%clk 0:02:12.5]}
26... bxc5 {[%clk 0:02:43.9]} 27. bxc5 {[%clk 0:02:10.9]} 27... Rxb2 {[%clk
0:02:42.2]} 28. Qxb2 {[%clk 0:02:09.6]} 28... Qa5 {[%clk 0:02:37.5]} 29. Rf1
{[%clk 0:01:47.9]} 29... f6 {[%clk 0:02:28.3]} 30. Qb4 {[%clk 0:01:29.2]} 30...
Qxb4 {[%clk 0:02:23.7]} 31. axb4 {[%clk 0:01:27.5]} 31... Nb5 {[%clk 0:02:21.6]}
32. Be2 {[%clk 0:01:23.6]} 32... Nc3 {[%clk 0:02:18.1]} 33. Bf3 {[%clk
0:01:21.4]} 33... e4 {[%clk 0:02:09.9]} 34. dxe4 {[%clk 0:01:19.3]} 34... dxe4
{[%clk 0:02:07.7]} 35. Bd1 {[%clk 0:01:16.1]} 35... Rd8 {[%clk 0:01:58.1]} 36.
Bb3 {[%clk 0:01:14.3]} 36... e3 {[%clk 0:01:44]} 37. fxe3 {[%clk 0:01:11.2]}
37... Ne2+ {[%clk 0:01:42.7]} 38. Kf2 {[%clk 0:01:08.8]} 38... Rd2 {[%clk
0:01:32.9]} 39. Ke1 {[%clk 0:00:54.2]} 39... Rb2 {[%clk 0:01:22.9]} 40. Bc4
{[%clk 0:00:51.7]} 40... Ng3 {[%clk 0:01:15.2]} 41. Rf2 {[%clk 0:00:48.6]} 41...
Rb1+ {[%clk 0:01:09.7]} 42. Kd2 {[%clk 0:00:46]} 42... Rb2+ {[%clk 0:01:08.3]}
43. Ke1 {[%clk 0:00:43]} 43... Rb1+ {[%clk 0:01:07.1]} 44. Kd2 {[%clk 0:00:40]}
44... Rb2+ {[%clk 0:01:06.2]} 45. Ke1 {[%clk 0:00:38.8]} 1/2-1/2

[Event "Live Chess"]
[Site "Chess.com"]
[Date "2024.06.01"]
[Round "-"]
[White "Rusty_Bridges"]
[Black "dhairyapandyauk"]
[Result "0-1"]
[WhiteElo "1485"]
[BlackElo "1742"]
[TimeControl "300"]
[EndTime "11:08:21 PDT"]
[Termination "dhairyapandyauk won by resignation"]

1. e4 {[%clk 0:04:57.7]} 1... e5 {[%clk 0:04:58.4]} 2. f4 {[%clk 0:04:53.9]}
2... d6 {[%clk 0:04:56.9]} 3. Nf3 {[%clk 0:04:52]} 3... Nc6 {[%clk 0:04:56.2]}
4. Bc4 {[%clk 0:04:51.2]} 4... exf4 {[%clk 0:04:52.6]} 5. d4 {[%clk 0:04:49.5]}
5... Nf6 {[%clk 0:04:49.5]} 6. Nc3 {[%clk 0:04:40.7]} 6... Be7 {[%clk
0:04:45.5]} 7. Bxf4 {[%clk 0:04:35.8]} 7... O-O {[%clk 0:04:43.6]} 8. d5 {[%clk
0:04:28.3]} 8... Nb8 {[%clk 0:04:39.2]} 9. Qe2 {[%clk 0:04:14.3]} 9... a6 {[%clk
0:04:35.5]} 10. O-O-O {[%clk 0:04:12.2]} 10... b5 {[%clk 0:04:34.6]} 11. Bd3
{[%clk 0:04:09.5]} 11... b4 {[%clk 0:04:33.2]} 12. Nb1 {[%clk 0:04:03.4]} 12...
c5 {[%clk 0:04:30.6]} 13. Nbd2 {[%clk 0:03:54.7]} 13... a5 {[%clk 0:04:23]} 14.
Nc4 {[%clk 0:03:52.3]} 14... a4 {[%clk 0:04:20.8]} 15. h3 {[%clk 0:03:46.6]}
15... Ba6 {[%clk 0:04:16.4]} 16. g4 {[%clk 0:03:42.9]} 16... Bxc4 {[%clk
0:04:14.5]} 17. Bxc4 {[%clk 0:03:41.1]} 17... b3 {[%clk 0:04:12.2]} 18. cxb3
{[%clk 0:03:39.2]} 18... axb3 {[%clk 0:04:11.3]} 19. a3 {[%clk 0:03:38.5]} 19...
Ra4 {[%clk 0:03:56]} 20. g5 {[%clk 0:03:33.6]} 20... Nh5 {[%clk 0:03:41.8]} 21.
Bh2 {[%clk 0:03:28.8]} 21... Bxg5+ {[%clk 0:03:33.6]} 22. Nxg5 {[%clk
0:03:26.6]} 22... Qxg5+ {[%clk 0:03:33.1]} 23. Kb1 {[%clk 0:03:24.5]} 23... Nf4
{[%clk 0:03:26.9]} 24. Bxf4 {[%clk 0:03:18]} 24... Qxf4 {[%clk 0:03:26.3]} 25.
Rdf1 {[%clk 0:03:07.7]} 25... Qh4 {[%clk 0:03:24]} 26. Qe3 {[%clk 0:02:56.4]}
26... Rxc4 {[%clk 0:03:20.7]} 27. Rf4 {[%clk 0:02:47.7]} 27... Qh6 {[%clk
0:03:17.9]} 28. Qg3 {[%clk 0:02:42.8]} 28... f5 {[%clk 0:03:13.3]} 29. Rhf1
{[%clk 0:02:37.7]} 29... Nd7 {[%clk 0:03:09]} 30. Rxf5 {[%clk 0:02:24.9]} 30...
Rxf5 {[%clk 0:03:08.1]} 31. exf5 {[%clk 0:02:17.1]} 31... Qd2 {[%clk 0:02:55.7]}
32. f6 {[%clk 0:02:11.4]} 32... Qc2+ {[%clk 0:02:54.3]} 33. Ka1 {[%clk
0:02:09.8]} 33... Qc1+ {[%clk 0:02:53.7]} 0-1

[Event "Live Chess"]
[Site "Chess.com"]
[Date "2024.06.01"]
[Round "-"]
[White "sshamil"]
[Black "TigerTank70"]
[Result "0-1"]
[WhiteElo "1681"]
[BlackElo "2203"]
[TimeControl "300"]
[EndTime "11:08:23 PDT"]
[Termination "TigerTank70 won by checkmate"]

1. g3 {[%clk 0:04:59]} 1... e5 {[%clk 0:04:58.6]} 2. Bg2 {[%clk 0:04:57.8]} 2...
d5 {[%clk 0:04:58]} 3. d3 {[%clk 0:04:55]} 3... Nc6 {[%clk 0:04:56.4]} 4. Nf3
{[%clk 0:04:50.9]} 4... Bg4 {[%clk 0:04:53.6]} 5. O-O {[%clk 0:04:49.6]} 5... h5
{[%clk 0:04:52.3]} 6. Nc3 {[%clk 0:04:45.1]} 6... Qd7 {[%clk 0:04:42.3]} 7. Bd2
{[%clk 0:04:41.2]} 7... Bh3 {[%clk 0:04:40.7]} 8. a3 {[%clk 0:04:32.7]} 8... h4
{[%clk 0:04:39.6]} 9. b4 {[%clk 0:04:30]} 9... Bxg2 {[%clk 0:04:36.5]} 10. Kxg2
{[%clk 0:04:27.9]} 10... hxg3 {[%clk 0:04:32.3]} 11. fxg3 {[%clk 0:04:26.5]}
11... Nd4 {[%clk 0:04:29.9]} 12. e3 {[%clk 0:04:17.5]} 12... Qh3+ {[%clk
0:04:25]} 13. Kf2 {[%clk 0:04:10.5]} 13... Nxf3 {[%clk 0:04:20.7]} 14. Qxf3
{[%clk 0:04:08.9]} 14... Qxh2+ {[%clk 0:04:19.8]} 15. Qg2 {[%clk 0:04:08]} 15...
Nf6 {[%clk 0:04:15]} 16. Qxh2 {[%clk 0:03:59.5]} 16... Rxh2+ {[%clk 0:04:14.9]}
17. Ke1 {[%clk 0:03:58.5]} 17... a5 {[%clk 0:04:09.2]} 18. Nb5 {[%clk
0:03:50.1]} 18... Kd7 {[%clk 0:04:00.3]} 19. bxa5 {[%clk 0:03:46]} 19... c6
{[%clk 0:03:58.7]} 20. Nc3 {[%clk 0:03:40.7]} 20... Rg2 {[%clk 0:03:50.7]} 21.
Rb1 {[%clk 0:03:39.1]} 21... Kc7 {[%clk 0:03:44.7]} 22. Rf2 {[%clk 0:03:37]}
22... Rxg3 {[%clk 0:03:40.8]} 23. Ke2 {[%clk 0:03:34.9]} 23... Bxa3 {[%clk
0:03:36.6]} 24. Rb3 {[%clk 0:03:32.1]} 24... Bd6 {[%clk 0:03:32.6]} 25. Be1
{[%clk 0:03:26.2]} 25... Rh3 {[%clk 0:03:27.5]} 26. Rg2 {[%clk 0:03:23.3]} 26...
Bf8 {[%clk 0:03:20.9]} 27. Bf2 {[%clk 0:03:06.1]} 27... Rxa5 {[%clk 0:03:18.3]}
28. d4 {[%clk 0:02:59.1]} 28... e4 {[%clk 0:03:12.3]} 29. Nb1 {[%clk 0:02:46.2]}
29... Ra2 {[%clk 0:03:08.1]} 30. Kd2 {[%clk 0:02:42.6]} 30... Rh1 {[%clk
0:02:59.8]} 31. Nc3 {[%clk 0:02:33.3]} 31... Raa1 {[%clk 0:02:58.9]} 32. Ne2
{[%clk 0:02:24.2]} 32... Rhd1+ {[%clk 0:02:55.1]} 33. Kc3 {[%clk 0:02:21.3]}
33... b5 {[%clk 0:02:46.9]} 34. Bg3+ {[%clk 0:02:14.6]} 34... Kd7 {[%clk
0:02:43.9]} 35. Rb2 {[%clk 0:02:02.5]} 35... b4+ {[%clk 0:02:37]} 36. Kb3 {[%clk
0:01:59.4]} 36... Ra3# {[%clk 0:02:35.9]} 0-1

[Event "Live Chess"]
[Site "Chess.com"]
[Date "2024.06.01"]
[Round "-"]
[White "Colm_Buckley"]
[Black "LL220284LL"]
[Result "1-0"]
[WhiteElo "1809"]
[BlackElo "2567"]
[TimeControl "300"]
[EndTime "11:08:30 PDT"]
[Termination "Colm_Buckley won by resignation"]

1. d4 {[%clk 0:04:57.7]} 1... b6 {[%clk 0:04:57.9]} 2. c4 {[%clk 0:04:56]} 2...
Bb7 {[%clk 0:04:57.3]} 3. Nc3 {[%clk 0:04:55.6]} 3... e6 {[%clk 0:04:56.6]} 4.
e4 {[%clk 0:04:54.5]} 4... Nf6 {[%clk 0:04:55.3]} 5. Bd3 {[%clk 0:04:52.5]} 5...
d6 {[%clk 0:04:54.2]} 6. Nf3 {[%clk 0:04:50.7]} 6... g6 {[%clk 0:04:53.4]} 7.
O-O {[%clk 0:04:49.6]} 7... Bg7 {[%clk 0:04:51.9]} 8. h3 {[%clk 0:04:43.6]} 8...
O-O {[%clk 0:04:50.4]} 9. Be3 {[%clk 0:04:42]} 9... Nbd7 {[%clk 0:04:48.6]} 10.
Qd2 {[%clk 0:04:40.5]} 10... Re8 {[%clk 0:04:47.3]} 11. Bh6 {[%clk 0:04:37.6]}
11... Bh8 {[%clk 0:04:46.1]} 12. b4 {[%clk 0:04:31.2]} 12... a5 {[%clk
0:04:44.6]} 13. a3 {[%clk 0:04:29.6]} 13... Qe7 {[%clk 0:04:39.3]} 14. Bg5
{[%clk 0:04:27.8]} 14... Qf8 {[%clk 0:04:37.8]} 15. Bh6 {[%clk 0:04:24.1]} 15...
Bg7 {[%clk 0:04:36.6]} 16. Bxg7 {[%clk 0:04:22.7]} 16... Qxg7 {[%clk 0:04:36.5]}
17. e5 {[%clk 0:04:14.5]} 17... dxe5 {[%clk 0:04:29.5]} 18. Nxe5 {[%clk
0:04:13]} 18... Nxe5 {[%clk 0:04:28.1]} 19. dxe5 {[%clk 0:04:11.8]} 19... Nd7
{[%clk 0:04:26.2]} 20. Be4 {[%clk 0:04:08.4]} 20... Bxe4 {[%clk 0:04:22.7]} 21.
Qxd7 {[%clk 0:04:03.5]} 21... Red8 {[%clk 0:04:05]} 22. Qxc7 {[%clk 0:03:57.7]}
22... Bd3 {[%clk 0:04:03.8]} 23. Rfd1 {[%clk 0:03:40.6]} 23... Rac8 {[%clk
0:04:02]} 24. Rxd3 {[%clk 0:03:26.8]} 24... Re8 {[%clk 0:03:46.5]} 25. Qxb6
{[%clk 0:03:20]} 25... Rxc4 {[%clk 0:03:44.3]} 26. Qxa5 {[%clk 0:03:13.3]} 26...
Qf8 {[%clk 0:03:37.3]} 27. Rad1 {[%clk 0:03:04.9]} 27... Rcc8 {[%clk 0:03:33.2]}
28. Ne4 {[%clk 0:03:01.2]} 28... Ra8 {[%clk 0:03:29.5]} 29. Qc5 {[%clk
0:02:49.4]} 29... Qxc5 {[%clk 0:03:26.8]} 30. bxc5 {[%clk 0:02:46.5]} 30... Kg7
{[%clk 0:03:25.5]} 31. c6 {[%clk 0:02:43.6]} 31... Rec8 {[%clk 0:03:23.4]} 32.
Rc1 {[%clk 0:02:38.4]} 32... Ra6 {[%clk 0:03:20.2]} 33. c7 {[%clk 0:02:34.6]}
33... Ra7 {[%clk 0:03:19.3]} 34. Rd7 {[%clk 0:02:32.1]} 34... Rxa3 {[%clk
0:03:16.2]} 35. Nd6 {[%clk 0:02:22]} 1-0

[Event "Live Chess"]
[Site "Chess.com"]
[Date "2024.06.01"]
[Round "-"]
[White "SavagePawn7"]
[Black "WilliamofOrange16th"]
[Result "0-1"]
[WhiteElo "684"]
[BlackElo "1943"]
[TimeControl "300"]
[EndTime "11:08:40 PDT"]
[Termination "WilliamofOrange16th won by resignation"]

1. e4 {[%clk 0:04:54.1]} 1... d6 {[%clk 0:04:59.3]} 2. d4 {[%clk 0:04:51.1]}
2... Nf6 {[%clk 0:04:58.9]} 3. Bg5 {[%clk 0:04:48.8]} 3... Nxe4 {[%clk
0:04:57.1]} 4. Nc3 {[%clk 0:04:38.5]} 4... Nxg5 {[%clk 0:04:56]} 5. Qd2 {[%clk
0:04:26.1]} 5... h6 {[%clk 0:04:50.2]} 6. O-O-O {[%clk 0:04:24.2]} 6... Nd7
{[%clk 0:04:45.8]} 7. Bb5 {[%clk 0:04:20.3]} 7... c6 {[%clk 0:04:44.6]} 8. Ba4
{[%clk 0:04:18.7]} 8... g6 {[%clk 0:04:39.6]} 9. Qf4 {[%clk 0:04:09.6]} 9... Bg7
{[%clk 0:04:36.4]} 10. Nh3 {[%clk 0:03:56.5]} 10... Ne6 {[%clk 0:04:33.6]} 11.
Qf3 {[%clk 0:03:50.2]} 11... d5 {[%clk 0:04:30]} 12. g4 {[%clk 0:03:40.6]} 12...
Nxd4 {[%clk 0:04:27.2]} 13. Rxd4 {[%clk 0:02:26.3]} 13... Bxd4 {[%clk
0:04:24.7]} 14. Ne2 {[%clk 0:02:17.8]} 14... Bg7 {[%clk 0:04:21.6]} 15. Re1
{[%clk 0:02:07.6]} 15... O-O {[%clk 0:04:20.1]} 16. g5 {[%clk 0:02:03.2]} 16...
Ne5 {[%clk 0:04:18]} 17. gxh6 {[%clk 0:02:01.5]} 17... Nxf3 {[%clk 0:04:12]} 0-1

[Event "Live Chess"]
[Site "Chess.com"]
[Date "2024.06.01"]
[Round "-"]
[White "Andysav3"]
[Black "Golden_Plans"]
[Result "0-1"]
[WhiteElo "1861"]
[BlackElo "2253"]
[TimeControl "300"]
[EndTime "11:08:47 PDT"]
[Termination "Golden_Plans won by resignation"]

1. e4 {[%clk 0:04:57.6]} 1... c5 {[%clk 0:04:50.8]} 2. c3 {[%clk 0:04:56.2]}
2... d5 {[%clk 0:04:48.9]} 3. exd5 {[%clk 0:04:54.7]} 3... Nf6 {[%clk
0:04:48.3]} 4. d4 {[%clk 0:04:51.7]} 4... Qxd5 {[%clk 0:04:42.9]} 5. Nf3 {[%clk
0:04:49.7]} 5... Bg4 {[%clk 0:04:41.7]} 6. Be2 {[%clk 0:04:48.9]} 6... Nc6
{[%clk 0:04:40.7]} 7. O-O {[%clk 0:04:47]} 7... e6 {[%clk 0:04:39.7]} 8. c4
{[%clk 0:04:42.2]} 8... Qd7 {[%clk 0:04:36.5]} 9. dxc5 {[%clk 0:04:37.8]} 9...
Bxc5 {[%clk 0:04:32.9]} 10. Nc3 {[%clk 0:04:32.9]} 10... O-O-O {[%clk
0:04:28.2]} 11. Qxd7+ {[%clk 0:04:23.8]} 11... Rxd7 {[%clk 0:04:28.1]} 12. a3
{[%clk 0:04:12.3]} 12... a5 {[%clk 0:04:21.2]} 13. Na4 {[%clk 0:04:05.5]} 13...
Ba7 {[%clk 0:04:09.5]} 14. c5 {[%clk 0:03:58.8]} 14... Ne4 {[%clk 0:04:06.4]}
15. Nb6+ {[%clk 0:03:44.3]} 15... Bxb6 {[%clk 0:04:04.4]} 16. cxb6 {[%clk
0:03:43.4]} 16... Nc5 {[%clk 0:03:57.8]} 17. b4 {[%clk 0:03:33.2]} 17... Nb3
{[%clk 0:03:43.9]} 18. Rb1 {[%clk 0:03:22.1]} 18... Nxc1 {[%clk 0:03:42.1]} 19.
Rfxc1 {[%clk 0:03:12.8]} 19... axb4 {[%clk 0:03:40.3]} 20. axb4 {[%clk 0:03:08]}
20... Kb8 {[%clk 0:03:36.9]} 21. h3 {[%clk 0:02:54.2]} 21... Bxf3 {[%clk
0:03:33.7]} 22. Bxf3 {[%clk 0:02:53.3]} 22... Nd4 {[%clk 0:03:32.9]} 23. Rc3
{[%clk 0:02:29.9]} 23... e5 {[%clk 0:03:29.3]} 24. Rbc1 {[%clk 0:02:23.9]} 24...
e4 {[%clk 0:03:28.3]} 25. Bd1 {[%clk 0:02:12.8]} 25... f5 {[%clk 0:03:24.1]} 26.
Kf1 {[%clk 0:02:09.8]} 26... Rhd8 {[%clk 0:03:21.9]} 27. Ba4 {[%clk 0:02:07.5]}
27... Rd6 {[%clk 0:03:19.6]} 28. Rc7 {[%clk 0:01:58.1]} 28... Rxb6 {[%clk
0:03:18]} 29. Rxg7 {[%clk 0:01:53.9]} 29... Rxb4 {[%clk 0:03:16.8]} 30. Bd7
{[%clk 0:01:38.4]} 30... Nb3 {[%clk 0:03:10.1]} 31. Rd1 {[%clk 0:01:34.5]} 31...
Rd4 {[%clk 0:03:08.8]} 32. Rxd4 {[%clk 0:01:24.4]} 32... Nxd4 {[%clk 0:03:07.5]}
33. Rxh7 {[%clk 0:01:19.3]} 33... b5 {[%clk 0:03:06.4]} 34. Bxf5 {[%clk
0:01:04]} 34... Nxf5 {[%clk 0:03:04.8]} 35. Rh5 {[%clk 0:01:03.2]} 35... Rd5
{[%clk 0:03:02.3]} 36. g4 {[%clk 0:01:01.6]} 36... Ne7 {[%clk 0:02:57.4]} 37.
Rxd5 {[%clk 0:00:53.1]} 37... Nxd5 {[%clk 0:02:57.3]} 38. Ke2 {[%clk 0:00:52]}
38... b4 {[%clk 0:02:55]} 39. Kd2 {[%clk 0:00:50.4]} 39... b3 {[%clk 0:02:53.1]}
40. h4 {[%clk 0:00:48.1]} 40... Nf4 {[%clk 0:02:50.5]} 41. h5 {[%clk 0:00:46.5]}
41... Ne6 {[%clk 0:02:43.9]} 42. h6 {[%clk 0:00:44]} 42... Ng5 {[%clk
0:02:42.9]} 43. Kc3 {[%clk 0:00:40.7]} 43... Kc7 {[%clk 0:02:35.6]} 44. Kxb3
{[%clk 0:00:39.8]} 44... Kd6 {[%clk 0:02:35.1]} 45. Kc3 {[%clk 0:00:39.1]} 45...
Ke5 {[%clk 0:02:34.3]} 46. Kd2 {[%clk 0:00:37.3]} 46... Kf4 {[%clk 0:02:33.4]}
47. Ke2 {[%clk 0:00:35.3]} 47... Kxg4 {[%clk 0:02:32.6]} 48. h7 {[%clk 0:00:31]}
48... Nxh7 {[%clk 0:02:31.3]} 49. Ke3 {[%clk 0:00:30.1]} 49... Ng5 {[%clk
0:02:30.8]} 50. Kd4 {[%clk 0:00:21]} 50... Kf3 {[%clk 0:02:29.2]} 0-1

[Event "Live Chess"]
[Site "Chess.com"]
[Date "2024.06.01"]
[Round "-"]
[White "GEMdzq"]
[Black "Crowded_House"]
[Result "1-0"]
[WhiteElo "2315"]
[BlackElo "1765"]
[TimeControl "300"]
[EndTime "11:08:47 PDT"]
[Termination "GEMdzq won by resignation"]

1. e4 {[%clk 0:04:57.7]} 1... e6 {[%clk 0:04:59.1]} 2. d4 {[%clk 0:04:57.2]}
2... d5 {[%clk 0:04:57.5]} 3. Nc3 {[%clk 0:04:56.8]} 3... dxe4 {[%clk
0:04:54.9]} 4. Nxe4 {[%clk 0:04:55.6]} 4... Bd7 {[%clk 0:04:54.6]} 5. Bg5 {[%clk
0:04:54.4]} 5... Bc6 {[%clk 0:04:54.3]} 6. Bxd8 {[%clk 0:04:52.9]} 6... Kxd8
{[%clk 0:04:53]} 7. Bd3 {[%clk 0:04:50.6]} 7... Bxe4 {[%clk 0:04:49.3]} 8. Bxe4
{[%clk 0:04:49.4]} 8... Nf6 {[%clk 0:04:49]} 9. Bxb7 {[%clk 0:04:47.8]} 9... c6
{[%clk 0:04:46.6]} 10. Bxa8 {[%clk 0:04:47.2]} 10... Nbd7 {[%clk 0:04:44.5]} 11.
Bxc6 {[%clk 0:04:45.3]} 11... Bd6 {[%clk 0:04:42.9]} 12. Nf3 {[%clk 0:04:44.7]}
1-0

[Event "Live Chess"]
[Site "Chess.com"]
[Date "2024.06.01"]
[Round "-"]
[White "Yarigo"]
[Black "SirGerhard"]
[Result "0-1"]
[WhiteElo "2347"]
[BlackElo "2772"]
[TimeControl "300"]
[EndTime "11:09:07 PDT"]
[Termination "SirGerhard won on time"]

1. d4 {[%clk 0:04:55.5]} 1... Nf6 {[%clk 0:04:58.9]} 2. Nf3 {[%clk 0:04:53.5]}
2... g6 {[%clk 0:04:58.2]} 3. Bf4 {[%clk 0:04:49.8]} 3... Bg7 {[%clk 0:04:57.6]}
4. Nc3 {[%clk 0:04:48.4]} 4... O-O {[%clk 0:04:56.8]} 5. Qd2 {[%clk 0:04:47.2]}
5... c5 {[%clk 0:04:54.2]} 6. d5 {[%clk 0:04:43.7]} 6... Qa5 {[%clk 0:04:51.2]}
7. e4 {[%clk 0:04:27.7]} 7... d6 {[%clk 0:04:49.3]} 8. Be2 {[%clk 0:04:10.5]}
8... b5 {[%clk 0:04:47.5]} 9. Nxb5 {[%clk 0:03:58.2]} 9... Qb6 {[%clk
0:04:32.9]} 10. Nc3 {[%clk 0:03:54.3]} 10... Qxb2 {[%clk 0:04:26.4]} 11. Rb1
{[%clk 0:03:51]} 11... Qa3 {[%clk 0:04:25.1]} 12. Rb3 {[%clk 0:03:48.8]} 12...
Qa5 {[%clk 0:04:23.8]} 13. O-O {[%clk 0:03:47.3]} 13... Ba6 {[%clk 0:04:04.4]}
14. e5 {[%clk 0:03:21.9]} 14... Nh5 {[%clk 0:03:52.7]} 15. Be3 {[%clk 0:03:19]}
15... dxe5 {[%clk 0:03:48.5]} 16. Rfb1 {[%clk 0:03:04.7]} 16... Bxe2 {[%clk
0:03:43.3]} 17. Nxe2 {[%clk 0:02:55.9]} 17... Qxd2 {[%clk 0:03:39.1]} 18. Nxd2
{[%clk 0:02:55.4]} 18... Nd7 {[%clk 0:03:37.9]} 19. c4 {[%clk 0:02:43.3]} 19...
f5 {[%clk 0:03:10.1]} 20. Rb7 {[%clk 0:02:26.2]} 20... Nhf6 {[%clk 0:03:09.1]}
21. Nb3 {[%clk 0:02:07.6]} 21... Rfc8 {[%clk 0:03:06.6]} 22. Nc3 {[%clk
0:01:53.4]} 22... f4 {[%clk 0:02:46.5]} 23. Bd2 {[%clk 0:01:50]} 23... Nb6
{[%clk 0:02:42.6]} 24. Na5 {[%clk 0:01:43.7]} 24... Ne8 {[%clk 0:02:27.8]} 25.
Rxe7 {[%clk 0:01:24]} 25... Nd6 {[%clk 0:02:20.8]} 26. Be1 {[%clk 0:01:03]}
26... Re8 {[%clk 0:02:10.1]} 27. Rxe8+ {[%clk 0:00:54.8]} 27... Rxe8 {[%clk
0:02:08.5]} 28. f3 {[%clk 0:00:54.5]} 28... e4 {[%clk 0:01:59.7]} 29. Nxe4
{[%clk 0:00:51.8]} 29... Nxe4 {[%clk 0:01:59]} 30. fxe4 {[%clk 0:00:50.9]} 30...
Rxe4 {[%clk 0:01:58.3]} 31. Bf2 {[%clk 0:00:37.2]} 31... Bd4 {[%clk 0:01:46.1]}
32. Rd1 {[%clk 0:00:28.2]} 32... Bxf2+ {[%clk 0:01:40.7]} 33. Kxf2 {[%clk
0:00:25.9]} 33... Kf7 {[%clk 0:01:39.7]} 34. Nb7 {[%clk 0:00:19.6]} 34... Nxc4
{[%clk 0:01:32.7]} 35. Nxc5 {[%clk 0:00:16.3]} 35... Re8 {[%clk 0:01:28]} 36.
Rd4 {[%clk 0:00:14.8]} 36... Nd6 {[%clk 0:01:20.1]} 37. Rxf4+ {[%clk 0:00:14.4]}
37... Ke7 {[%clk 0:01:19.3]} 38. Ra4 {[%clk 0:00:13.7]} 38... Rc8 {[%clk
0:01:16.1]} 39. Ne6 {[%clk 0:00:12.3]} 39... Kf6 {[%clk 0:01:11.4]} 40. Rxa7
{[%clk 0:00:09.3]} 40... Ke5 {[%clk 0:01:10.8]} 41. Rxh7 {[%clk 0:00:05.5]}
41... Rc2+ {[%clk 0:01:09.2]} 42. Kf3 {[%clk 0:00:03.7]} 42... Nf5 {[%clk
0:01:01.5]} 43. Nf4 {[%clk 0:00:01.4]} 43... Rc3+ {[%clk 0:00:56]} 44. Kg4
{[%clk 0:00:00.1]} 44... Ne3+ {[%clk 0:00:55.9]} 0-1